fUSD/lending_fUSD_20260401
["ID","MTS","AMOUNT","RATE_DAILY","PERIOD"]
[419241671,1775033444170,-151.0,0.000249,2]
[419241672,1775033444180,-151.0,0.000249,2]
[419241673,1775033444189,-151.0,0.000249,2]
[419241674,1775033444199,-151.0,0.000249,2]
[419241675,1775033444208,-151.0,0.000249,2]
[419241676,1775033444218,-151.0,0.000249,2]
[419241677,1775033444227,-151.0,0.000249,2]
[419241678,1775033444237,-151.0,0.000249,2]
[419241679,1775033444247,-262.969685,0.000249,2]
[419241680,1775033444256,-151.0,0.000249,2]
[419241681,1775033444265,-151.0,0.000249,2]
[419241682,1775033444275,-151.0,0.000249,2]
[419241683,1775033444284,-151.0,0.000249,2]
[419241684,1775033444294,-151.0,0.000249,2]
[419241685,1775033444303,-500.0,0.000249,2]
[419241686,1775033444313,-500.0,0.000249,2]
[419241687,1775033444322,-500.0,0.000249,2]
[419241688,1775033444331,-500.0,0.000249,2]
[419241689,1775033444341,-500.0,0.000249,2]
[419241690,1775033444350,-500.0,0.000249,2]
[419241691,1775033444359,-500.0,0.000249,2]
[419241692,1775033444368,-500.0,0.000249,2]
[419241693,1775033444378,-500.0,0.000249,2]
[419241694,1775033444388,-500.0,0.000249,2]
[419241695,1775033444398,-500.0,0.000249,2]
[419241696,1775033444407,-500.0,0.000249,2]
[419241697,1775033444417,-500.0,0.000249,2]
[419241698,1775033444426,-500.0,0.000249,2]
[419241699,1775033444436,-500.0,0.000249,2]
[419241700,1775033444445,-500.0,0.000249,2]
[419241701,1775033444454,-500.0,0.000249,2]
[419241702,1775033444463,-500.0,0.000249,2]
[419241703,1775033444473,-500.0,0.000249,2]
[419241704,1775033444482,-500.0,0.000249,2]
[419241705,1775033444491,-500.0,0.000249,2]
[419241706,1775033444500,-500.0,0.000249,2]
[419241707,1775033444509,-500.0,0.000249,2]
[419241708,1775033444518,-500.0,0.000249,2]
[419241709,1775033444528,-500.0,0.000249,2]
[419241710,1775033444537,-500.0,0.000249,2]
[419241711,1775033444546,-500.0,0.000249,2]
[419241712,1775033444555,-500.0,0.000249,2]
[419241713,1775033444564,-500.0,0.000249,2]
[419241714,1775033444574,-500.0,0.000249,2]
[419241715,1775033444584,-500.0,0.000249,2]
[419241716,1775033444593,-500.0,0.000249,2]
[419241717,1775033444602,-500.0,0.000249,2]
[419241718,1775033444611,-500.0,0.000249,2]
[419241719,1775033444621,-500.0,0.000249,2]
[419241720,1775033444630,-500.0,0.000249,2]
[419241721,1775033444639,-500.0,0.000249,2]
[419241722,1775033444648,-500.0,0.000249,2]
[419241723,1775033444657,-500.0,0.000249,2]
[419241724,1775033444667,-500.0,0.000249,2]
[419241725,1775033444676,-500.0,0.000249,2]
[419241726,1775033444685,-363.417537,0.000249,2]
[419241727,1775033444695,-500.0,0.00024932,2]
[419241728,1775033444704,-500.0,0.00024932,2]
[419241729,1775033444713,-500.0,0.00024932,2]
[419241730,1775033444722,-426.0,0.00025,2]
[419241731,1775033444732,-879.0,0.00025,2]
[419241732,1775033444741,-1271.0,0.00025,2]
[419241733,1775033444751,-4385.0,0.00025,2]
[419241734,1775033444760,-1219.0,0.00025,2]
[419241735,1775033444769,-525.0,0.00025,2]
[419241736,1775033444779,-168.27,0.00025073,2]
[419241737,1775033444788,-403.84,0.00025452,2]
[419241738,1775033444797,-4311.06719922,0.00025503,2]
[419241739,1775033444807,-2000.0,0.000256,2]
[419241740,1775033444816,-151.0,0.00025786,2]
[419241741,1775033444825,-151.0,0.00025786,2]
[419241742,1775033444835,-151.0,0.00025786,2]
[419241743,1775033444845,-151.0,0.00025786,2]
[419241744,1775033444854,-151.0,0.00025786,2]
[419241745,1775033444863,-151.0,0.00025786,2]
[419241746,1775033444873,-151.0,0.00025786,2]
[419241747,1775033444882,-251.335443,0.00025786,2]
[419241748,1775033444892,-1000.0,0.00025786,2]
[419241749,1775033444901,-32842.583,0.00025786,2]
[419241750,1775033444911,-954.0,0.00025886,10]
[419241751,1775033444920,-1855.0,0.00025886,10]
[419241752,1775033444930,-150.0,0.0002589,2]
[419241753,1775033444940,-18232.1,0.00025909,2]
[419241754,1775033444949,-426.0,0.00026,2]
[419241755,1775033444959,-879.0,0.00026,2]
[419241756,1775033444969,-1271.0,0.00026,2]
[419241757,1775033444979,-4385.0,0.00026,2]
[419241758,1775033444988,-1219.0,0.00026,2]
[419241759,1775033444997,-525.0,0.00026,2]
[419241760,1775033445007,-2000.0,0.00026,2]
[419241761,1775033445016,-175.27,0.00026121,30]
[419241762,1775033445026,-1018.0,0.00026224,5]
[419241763,1775033445036,-3035.4058,0.000263,62]
[419241764,1775033445045,-3493.96897858,0.00026445,120]
[419241765,1775033445054,-180.62462886,0.00026445,120]
[419241766,1775033445063,-505.0,0.00026489,13]
[419241767,1775033445073,-285.67503286,0.00026536,2]
[419241768,1775033445083,-355.78039354,0.00026605,2]
[419241769,1775033445092,-170.0258102,0.00026712,2]
[419241770,1775033445102,-403.84524185,0.00026724,2]
[419241771,1775033445112,-150.0,0.00026778,2]
[419241772,1775033445121,-150.0,0.00026778,2]
[419241773,1775033445131,-150.0,0.00026778,2]
[419241774,1775033445140,-150.0,0.00026778,2]
[419241775,1775033445150,-150.0,0.00026778,2]
[419241776,1775033445160,-150.0,0.00026778,2]
[419241777,1775033445169,-150.0,0.00026778,2]
[419241778,1775033445179,-150.0,0.00026778,2]
[419241779,1775033445189,-150.0,0.00026778,2]
[419241780,1775033445198,-1642.93683062,0.00026881,2]
[419241781,1775033445207,-800.0,0.00026986,120]
[419241782,1775033445217,-800.0,0.00026986,120]
[419241783,1775033445226,-426.08733496,0.00027,2]
[419241784,1775033445236,-894.0,0.00027,2]
[419241785,1775033445247,-1276.32774423,0.00027,2]
[419241786,1775033445257,-4398.67305915,0.00027,2]
[419241787,1775033445267,-1225.62658029,0.00027,2]
[419241788,1775033445276,-540.2014381,0.00027,2]
[419241789,1775033445286,-160.0,0.00027,3]
[419241790,1775033445295,-150.0,0.0002715,4]
[419241791,1775033445304,-150.0,0.00027185,2]
[419241792,1775033445314,-3438.66676521,0.00027229,2]
[419241793,1775033445331,-1620.0,0.00027229,2]
[419241794,1775033445827,-541.39864331,0.00027229,2]
[419241795,1775033445881,-662.78323418,0.00016001,2]
[419241796,1775033445891,-5491.64818415,0.00027229,2]
[419241797,1775033446030,-2517.94359379,0.00027229,2]
[419241798,1775033446048,-246.08673259,0.00027229,2]
[419241799,1775033446059,-220.49808441,0.00027289,60]
[419241800,1775033446076,-497.95191559,0.00027289,60]
[419241801,1775033446086,-150.0,0.00027373,4]
[419241802,1775033446096,-74.94358601,0.00027373,4]
[419241803,1775033446176,-75.05641399,0.00027373,4]
[419241804,1775033446185,-450.66053804,0.00027397,2]
[419241805,1775033446197,-313.50595673,0.00027397,2]
[419241806,1775033446208,-358.29252198,0.00027397,2]
[419241807,1775033446217,-378.19027535,0.00027397,2]
[419241808,1775033446226,-3.29429391,0.00027397,7]
[419241809,1775033446284,-518.74921003,0.00027397,7]
[419241810,1775033446297,-407.95649606,0.00027397,7]
[419241811,1775033446306,-593.084821,0.00027397,2]
[419241812,1775033446316,-593.084821,0.00027397,2]
[419241813,1775033446327,-593.084821,0.00027397,2]
[419241814,1775033446336,-593.084821,0.00027397,2]
[419241815,1775033446346,-323.37602213,0.00027397,2]
[419241816,1775033446356,-10981.89,0.00027397,10]
[419241817,1775033446365,-150.0,0.00027435,2]
[419241818,1775033446375,-150.0,0.00027435,2]
[419241819,1775033446385,-203.0,0.00027435,2]
[419241820,1775033446395,-500.0,0.0002744,2]
[419241821,1775033446406,-150.0,0.00027522,7]
[419241822,1775033446417,-150.0,0.00027522,7]
[419241823,1775033446428,-4311.06719922,0.00027618,2]
[419241824,1775033446438,-930.0,0.00027671,7]
[419241825,1775033446448,-2161.0,0.000277,2]
[419241826,1775033446458,-219.07152529,0.00027711,2]
[419241827,1775033446468,-150.0,0.0002777,7]
[419241828,1775033446478,-3899.9635,0.000278,67]
[419241829,1775033446489,-150.0,0.00027894,7]
[419241830,1775033446498,-256.68,0.00027945,7]
[419241831,1775033446508,-150.0,0.00027968,7]
[419241832,1775033446518,-150.0,0.00027968,7]
[419241833,1775033446529,-150.0,0.00028266,7]
[419241834,1775033446540,-150.0,0.00028266,7]
[419241835,1775033446551,-150.0,0.00028266,7]
[419241836,1775033446561,-150.0,0.00028266,7]
[419241838,1775033446569,-151.0,0.00028382,7]
[419241840,1775033446578,-151.0,0.00028382,7]
[419241842,1775033446588,-151.0,0.00028382,7]
[419241843,1775033446597,-168.838368,0.00028382,7]
[419241844,1775033446605,-151.0,0.00028382,7]
[419241845,1775033446614,-200.0,0.00028382,5]
[419241846,1775033446623,-200.0,0.00028382,5]
[419241847,1775033446632,-200.0,0.00028382,5]
[419241848,1775033446642,-200.0,0.00028382,5]
[419241849,1775033446651,-200.0,0.00028382,5]
[419241850,1775033446661,-200.0,0.00028382,5]
[419241851,1775033446670,-200.0,0.00028382,5]
[419241852,1775033446679,-500.0,0.00028384,2]
[419241853,1775033446689,-150.0,0.00028544,2]
[419241854,1775033446699,-150.0,0.00028563,7]
[419241855,1775033446708,-150.0,0.00028563,7]
[419241856,1775033446717,-392.94504046,0.00028607,2]
[419241857,1775033446726,-150.0,0.00028638,7]
[419241858,1775033446735,-750.0,0.00028686,2]
[419241859,1775033446745,-750.0,0.00028686,2]
[419241860,1775033446754,-750.0,0.00028686,2]
[419241861,1775033446763,-750.0,0.00028686,2]
[419241862,1775033446773,-750.0,0.00028686,2]
[419241863,1775033446782,-750.0,0.00028686,2]
[419241864,1775033446793,-750.0,0.00028686,2]
[419241865,1775033446802,-89.99195014,0.00028686,2]
[419241866,1775033446814,-660.00804986,0.00028686,2]
[419241868,1775033446824,-150.69381828,0.00028686,2]
[419241870,1775033447709,-221.81334,0.00014901,7]
[419241871,1775033447718,-477.0,0.00025909,10]
[419241872,1775033447728,-1700.0,0.00025909,10]
[419241873,1775033447738,-599.30618172,0.00028686,2]
[419241874,1775033447748,-395.0,0.00028686,2]
[419241875,1775033447757,-150.0,0.00028762,7]
[419241876,1775033447766,-150.0,0.0002901,7]
[419241877,1775033447775,-150.0,0.0002901,7]
[419241878,1775033447785,-1444.0,0.00029041,120]
[419241879,1775033447794,-150.0,0.00029158,7]
[419241880,1775033447803,-150.0,0.00029158,7]
[419241881,1775033447812,-505.0,0.00029164,15]
[419241882,1775033447822,-1815.08684123,0.000292,72]
[419241883,1775033448133,-3195.68165877,0.000292,72]
[419241884,1775033448142,-1989.74264541,0.000293,2]
[419241886,1775033487156,-150.0,0.00046728,7]
[419241887,1775033488930,264.406,8.506e-05,2]
[419241888,1775033488976,5279.478,8.506e-05,2]
[419241889,1775033597999,993.59,8.18e-05,2]
[419241891,1775033851937,2525.14,8.245e-05,2]
[419241893,1775033885519,1600.0,8.154e-05,2]
[419241894,1775033896956,200.0,8.086e-05,2]
[419241895,1775033916573,200.01866991,1.7e-06,2]
[419241896,1775033948266,7191.52,8.02e-05,2]
[419241902,1775034122743,1464.6053,8.48e-05,2]
[419241903,1775034204105,8535.4047,8.48e-05,2]
[419241904,1775034204128,10000.01,8.48e-05,2]
[419241905,1775034204152,7807.1931,8.48e-05,2]
[419241906,1775034205377,500.0,8.403e-05,2]
[419241907,1775034205532,500.0,8.403e-05,2]
[419241908,1775034205683,500.0,8.403e-05,2]
[419241909,1775034206361,500.0,8.403e-05,2]
[419241910,1775034206485,192.8169,8.403e-05,2]
[419241911,1775034206508,307.1831,8.403e-05,2]
[419241912,1775034206647,500.0,8.403e-05,2]
[419241913,1775034206716,500.0,8.403e-05,2]
[419241914,1775034207008,500.0,8.403e-05,2]
[419241915,1775034207066,500.0,8.403e-05,2]
[419241916,1775034208813,500.0,8.403e-05,2]
[419241917,1775034208876,500.0,8.403e-05,2]
[419241918,1775034208979,500.0,8.403e-05,2]
[419241919,1775034209057,500.0,8.403e-05,2]
[419241920,1775034209136,500.0,8.403e-05,2]
[419241921,1775034209206,500.0,8.403e-05,2]
[419241922,1775034209260,500.0,8.403e-05,2]
[419241923,1775034209391,325.0,8.403e-05,2]
[419241924,1775034242681,150.0,8.5e-05,2]
[419241925,1775034247309,500.0,8.403e-05,2]
[419241926,1775034247453,500.0,8.403e-05,2]
[419241927,1775034247596,500.0,8.403e-05,2]
[419241928,1775034247954,500.0,8.403e-05,2]
[419241929,1775034248107,500.0,8.403e-05,2]
[419241930,1775034248251,500.0,8.403e-05,2]
[419241931,1775034248405,500.0,8.403e-05,2]
[419241932,1775034250204,500.0,8.403e-05,2]
[419241933,1775034250355,500.0,8.403e-05,2]
[419241934,1775034250509,500.0,8.403e-05,2]
[419241935,1775034250697,500.0,8.403e-05,2]
[419241936,1775034250819,500.0,8.403e-05,2]
[419241937,1775034251082,500.0,8.403e-05,2]
[419241938,1775034251239,169.33060056,8.403e-05,2]
[419241939,1775034313854,150.0,8.5e-05,2]
[419241940,1775034335029,500.0,8.216e-05,2]
[419241941,1775034362108,172.53,6.449e-05,2]
[419241942,1775034362293,172.53,8.062e-05,2]
[419241943,1775034384426,150.0,8.5e-05,2]
[419241945,1775034435163,500.0,8.305e-05,2]
[419241946,1775034435317,500.0,8.305e-05,2]
[419241947,1775034435486,500.0,8.305e-05,2]
[419241948,1775034435654,500.0,8.305e-05,2]
[419241949,1775034435821,500.0,8.305e-05,2]
[419241950,1775034435980,500.0,8.305e-05,2]
[419241951,1775034437696,500.0,8.305e-05,2]
[419241952,1775034437751,500.0,8.305e-05,2]
[419241953,1775034437852,500.0,8.305e-05,2]
[419241954,1775034437915,500.0,8.305e-05,2]
[419241955,1775034438000,500.0,8.305e-05,2]
[419241956,1775034438045,500.0,8.305e-05,2]
[419241957,1775034438115,611.75027897,8.305e-05,2]
[419241958,1775034461087,150.0,8.5e-05,2]
[419241959,1775034518106,578.0,8.305e-05,2]
[419241960,1775034518228,578.0,8.305e-05,2]
[419241961,1775034518356,578.0,8.305e-05,2]
[419241962,1775034518530,578.0,8.305e-05,2]
[419241963,1775034518689,578.0,8.305e-05,2]
[419241964,1775034519096,198.25972103,8.305e-05,2]
[419241965,1775034519118,379.74027897,8.305e-05,2]
[419241966,1775034519191,578.0,8.305e-05,2]
[419241967,1775034519258,578.0,8.305e-05,2]
[419241968,1775034519330,578.0,8.305e-05,2]
[419241969,1775034519487,578.0,8.305e-05,2]
[419241970,1775034519863,578.0,8.305e-05,2]
[419241971,1775034520017,578.0,8.305e-05,2]
[419241972,1775034520464,578.0,8.305e-05,2]
[419241973,1775034520619,578.0,8.305e-05,2]
[419241974,1775034520767,578.0,8.305e-05,2]
[419241975,1775034520915,578.0,8.305e-05,2]
[419241976,1775034521078,578.0,8.305e-05,2]
[419241977,1775034529185,578.0,8.305e-05,2]
[419241978,1775034529485,578.0,8.305e-05,2]
[419241979,1775034529888,578.0,8.305e-05,2]
[419241980,1775034531397,578.0,8.305e-05,2]
[419241981,1775034532098,150.0,8.5e-05,2]
[419241982,1775034532642,578.0,8.305e-05,2]
[419241983,1775034534598,222.26972103,8.305e-05,2]
[419241984,1775034534621,355.73027897,8.305e-05,2]
[419241985,1775034536878,599.71767923,8.305e-05,2]
[419241986,1775034610521,150.0,8.5e-05,2]
[419241999,1775034634406,-351.21214279,8.538e-05,2]
[419242000,1775034634421,-848.78785721,8.538e-05,2]
[419242001,1775034634431,-300.0,8.538e-05,2]
[419242002,1775034634441,-8690.30780307,8.538e-05,2]
[419242003,1775034634450,-5000.0,8.539e-05,2]
[419242004,1775034634459,-5000.0,8.539e-05,2]
[419242005,1775034634468,-5000.0,8.539e-05,2]
[419242006,1775034634478,-49235.84047746,8.539e-05,2]
[419242009,1775034638279,-500.0,8.538e-05,2]
[419242010,1775034638289,-245.46632711,8.538e-05,2]
[419242011,1775034638300,-254.53367289,8.538e-05,2]
[419242012,1775034638314,-352.19636053,8.538e-05,2]
[419242013,1775034638326,-147.80363947,8.538e-05,2]
[419242014,1775034638336,-500.0,8.538e-05,2]
[419242015,1775034638345,-500.0,8.538e-05,2]
[419242016,1775034638355,-500.0,8.538e-05,2]
[419242017,1775034638364,-7.25365679,8.538e-05,2]
[419242018,1775034638375,-617.45051067,8.538e-05,2]
[419242019,1775034638384,-375.44873195,8.539e-05,2]
[419242020,1775034638417,-119279.93989432,8.539e-05,2]
[419242021,1775034638426,-176.21634615,8.539e-05,2]
[419242022,1775034638436,-272.0,8.539e-05,2]
[419242023,1775034638446,-250.0,8.539e-05,2]
[419242024,1775034638456,-1025.69,8.539e-05,2]
[419242025,1775034638466,-250.0,8.544e-05,2]
[419242026,1775034638475,-150.0,8.546e-05,2]
[419242027,1775034638484,-176.21634615,8.548e-05,2]
[419242028,1775034638494,-1036.17275574,8.554e-05,2]
[419242029,1775034638503,-176.21634615,8.556e-05,2]
[419242030,1775034638512,-500.0,8.566e-05,2]
[419242031,1775034638524,-272.25613546,8.566e-05,2]
[419242032,1775034638535,-500.0,8.566e-05,2]
[419242033,1775034638545,-500.0,8.566e-05,2]
[419242034,1775034638557,-230.216035,8.566e-05,2]
[419242035,1775034638567,-500.0,8.566e-05,2]
[419242036,1775034638578,-500.0,8.566e-05,2]
[419242037,1775034638589,-500.0,8.566e-05,2]
[419242038,1775034638599,-500.0,8.566e-05,2]
[419242039,1775034638610,-221.20026492,8.566e-05,2]
[419242040,1775034638621,-500.0,8.566e-05,2]
[419242041,1775034638631,-1000.0,8.567e-05,2]
[419242042,1775034638640,-3929.86407859,8.578e-05,2]
[419242043,1775034638649,-500.0,8.578e-05,2]
[419242044,1775034638658,-2458.16,8.578e-05,2]
[419242045,1775034638668,-9999.99,8.578e-05,2]
[419242046,1775034638677,-9449.95,8.579e-05,2]
[419242047,1775034638686,-150.99,8.579e-05,2]
[419242048,1775034638695,-299.99,8.579e-05,2]
[419242049,1775034638705,-8028.13,8.58e-05,2]
[419242050,1775034638714,-999.99,8.58e-05,2]
[419242051,1775034638724,-500.0,8.589e-05,2]
[419242052,1775034638734,-500.0,8.633e-05,2]
[419242053,1775034638743,-158.37400815,8.633e-05,2]
[419242054,1775034638752,-972512.0626,8.653e-05,2]
[419242055,1775034638762,-151.0,8.677e-05,2]
[419242057,1775034638771,-151.0,8.677e-05,2]
[419242059,1775034638780,-3205.98,8.838e-05,2]
[419242061,1775034638789,-500.0,8.852e-05,2]
[419242063,1775034638799,-775.8,8.926e-05,2]
[419242065,1775034638809,-45070.41,9.127e-05,2]
[419242067,1775034638823,-1600.0,9.173e-05,2]
[419242069,1775034638833,-5000.0,9.392e-05,2]
[419242071,1775034638842,-1680.0,9.392e-05,2]
[419242073,1775034638851,-420.0,9.392e-05,2]
[419242075,1775034638861,-250.0,9.393e-05,2]
[419242077,1775034638871,-5000.0,9.393e-05,2]
[419242079,1775034638881,-7472.82277029,9.5e-05,3]
[419242081,1775034638891,-172.53,9.674e-05,2]
[419242083,1775034638901,-153.82252542,0.0001,2]
[419242085,1775034638910,-738.34266848,0.0001,2]
[419242087,1775034638920,-151.0,0.0001,2]
[419242089,1775034638930,-151.0,0.0001,2]
[419242091,1775034638940,-151.0,0.0001,2]
[419242093,1775034638950,-151.0,0.0001,2]
[419242095,1775034638960,-151.0,0.0001,2]
[419242097,1775034638969,-151.0,0.0001,2]
[419242100,1775034638980,-151.0,0.0001,2]
[419242101,1775034638990,-151.0,0.0001,2]
[419242103,1775034638999,-151.0,0.0001,2]
[419242105,1775034639009,-151.0,0.0001,2]
[419242107,1775034639018,-219.80818474,0.0001,2]
[419242109,1775034639027,-1977.03889303,0.0001,2]
[419242112,1775034639038,-10593.45637043,0.0001,2]
[419242114,1775034639047,-192.2689,0.0001,7]
[419242116,1775034639056,-261.54857406,0.000101,2]
[419242118,1775034639066,-1600.0,0.00010192,2]
[419242120,1775034639075,-1151.0,0.00010331,2]
[419242122,1775034639085,-587.0,0.00010331,2]
[419242124,1775034639095,-605.35070897,0.0001069,2]
[419242126,1775034639104,-16996.1438,0.000107,2]
[419242127,1775034639115,-1000.0,0.000107,2]
[419242129,1775034639126,-270.14237308,0.000107,2]
[419242132,1775034639137,-10821.64128497,0.000109,2]
[419242134,1775034639147,-167.98285327,0.00010959,2]
[419242135,1775034639156,-5867.65943792,0.00011,2]
[419242136,1775034639167,-1600.0,0.00011212,2]
[419242137,1775034639176,-250.0,0.00011283,2]
[419242138,1775034639187,-823.0,0.00011364,2]
[419242139,1775034639198,-246.4489,0.000114,12]
[419242140,1775034639207,-4693.82,0.00011507,2]
[419242141,1775034639220,-7346.78,0.00012087,2]
[419242142,1775034639230,-1600.0,0.00012231,2]
[419242143,1775034639239,-3205.98,0.00012373,2]
[419242144,1775034639249,-10821.64128494,0.00012496,2]
[419242145,1775034639259,-1152.0,0.00012501,2]
[419242146,1775034639268,-315.8964,0.000129,17]
[419242147,1775034639277,-932.91892573,0.00012987,2]
[419242148,1775034639287,-250.0,0.00013,2]
[419242149,1775034639297,-505.0,0.00013111,2]
[419242150,1775034639307,-505.0,0.00013111,2]
[419242151,1775034639317,-2059.22000218,0.0001326,2]
[419242152,1775034639330,-150.0,0.00013699,2]
[419242153,1775034639339,-150.0,0.00013699,2]
[419242154,1775034639350,-166.66,0.00013699,2]
[419242155,1775034639360,-16362.27,0.00013699,2]
[419242156,1775034639370,-358.49657185,0.00013699,2]
[419242157,1775034639380,-452.86,0.00013699,2]
[419242158,1775034639391,-407.11835433,0.00013699,2]
[419242159,1775034639402,-1613.0,0.00013751,2]
[419242160,1775034639414,-166.66,0.00013836,2]
[419242161,1775034639425,-150.0,0.00013973,2]
[419242162,1775034639435,-166.66,0.00013973,2]
[419242163,1775034639446,-452.86,0.00013973,2]
[419242164,1775034639456,-166.66,0.0001411,2]
[419242165,1775034639466,-166.66,0.00014247,2]
[419242166,1775034639476,-150.0,0.00014247,2]
[419242167,1775034639486,-452.86,0.00014247,2]
[419242168,1775034639497,-404.9138,0.000143,22]
[419242169,1775034639507,-166.66,0.00014384,2]
[419242170,1775034639517,-170.03,0.00014384,2]
[419242171,1775034639527,-452.86,0.00014521,2]
[419242172,1775034639536,-168.26,0.00014545,2]
[419242173,1775034639546,-452.86,0.00014795,2]
[419242174,1775034639555,-300.0,0.00015,2]
[419242175,1775034639565,-452.91,0.00015068,2]
[419242176,1775034639575,-495.62,0.00015068,2]
[419242177,1775034639585,-160.0,0.00015088,2]
[419242178,1775034639596,-160.0,0.00015088,2]
[419242179,1775034639605,-160.0,0.00015088,2]
[419242180,1775034639615,-2258.0,0.00015126,2]
[419242181,1775034639624,-500.0,0.00015188,2]
[419242182,1775034639636,-500.0,0.00015188,2]
[419242183,1775034639646,-495.62,0.00015342,2]
[419242184,1775034639655,-495.62,0.00015616,2]
[419242185,1775034639665,-1079.04808524,0.00015735,2]
[419242186,1775034639676,-1000.0,0.00015735,2]
[419242187,1775034639686,-306.0,0.00015753,2]
[419242188,1775034639696,-519.0157,0.000158,27]
[419242189,1775034639706,-2000.0,0.0001589,2]
[419242190,1775034639715,-150.0,0.000159,2]
[419242191,1775034639725,-150.0,0.000159,2]
[419242192,1775034639735,-6129.07395549,0.000159,2]
[419242193,1775034639744,-151.0,0.000159,2]
[419242194,1775034639754,-3638.15710727,0.000159,2]
[419242195,1775034639763,-7433.71578473,0.000159,2]
[419242196,1775034639773,-6129.07395548,0.000159,2]
[419242197,1775034639783,-6129.07395548,0.000159,2]
[419242198,1775034639794,-6129.07395548,0.00015901,2]
[419242199,1775034639804,-6129.07395548,0.00015901,2]
[419242200,1775034639814,-150.71162126,0.00015901,2]
[419242201,1775034639824,-6129.07395548,0.00015901,2]
[419242202,1775034639834,-5054.75480365,0.0001596,2]
[419242203,1775034639843,-605.35070897,0.0001599,2]
[419242204,1775034639853,-605.35070897,0.0001599,2]
[419242205,1775034639863,-500.0,0.00016,2]
[419242206,1775034639872,-111399.42173386,0.00016,2]
[419242207,1775034639953,-8460.0,0.00016,2]
[419242208,1775034639965,-213445.8,0.00016,2]
[419242209,1775034639983,-260.07600226,0.000159,2]
[419242210,1775034639993,-431614.18934388,0.00016,2]
[419242215,1775034640346,1229.92,8.076e-05,2]
[419242220,1775034641442,-237.18692904,0.000159,2]
[419242221,1775034641453,-447.81307096,0.00016,2]
[419242222,1775034641526,-2230.47625356,0.00016,2]
[419242223,1775034641537,-4608.27399889,0.00016,2]
[419242224,1775034641581,-943206.99192729,0.00016,2]
[419242225,1775034641590,-3167276.82457067,0.00016,2]
[419242226,1775034641600,-174.1891,0.00016101,2]
[419242227,1775034641609,-174.1891,0.00016101,2]
[419242228,1775034641618,-174.1891,0.00016101,2]
[419242229,1775034641628,-174.1891,0.00016101,2]
[419242230,1775034641637,-174.1891,0.00016101,2]
[419242231,1775034641648,-174.1891,0.00016101,2]
[419242232,1775034641657,-10000.0,0.00016101,7]
[419242233,1775034641666,-10000.0,0.00016101,7]
[419242234,1775034641675,-10000.0,0.00016101,7]
[419242235,1775034641684,-2069.0,0.00016101,7]
[419242236,1775034641694,-3674.27,0.00016116,2]
[419242237,1775034641704,-9340.04,0.00016116,2]
[419242238,1775034641714,-597.35,0.00016116,2]
[419242239,1775034641723,-7285.85,0.00016116,2]
[419242240,1775034641733,-1394.77,0.00016116,2]
[419242241,1775034641743,-505.0,0.00016151,4]
[419242242,1775034641753,-10821.64128494,0.00016416,2]
[419242243,1775034641762,-500.0,0.00016438,2]
[419242244,1775034641772,-500.0,0.00016438,2]
[419242245,1775034641781,-289.40261194,0.00016438,2]
[419242246,1775034641791,-164.36,0.00016438,2]